Cogmind - Beta 17.1 @@@ ROGUE MODE // 2026.08.29 @ 22:19:52 Player: Scuttle Result: Destroyed by B-90 Cyclops with Nova Cannon Performance ------------- Evolutions (8) 4000 Regions Visited (22) 4400 Robots Destroyed (332) 1660 Value Destroyed (15852) 15852 Prototype IDs (244) 4880 Alien Tech Used (6) 1200 Bonus (15016) 15016 TOTAL SCORE: 47008 Bonus ------- High Alert Combat Kills 1495 Follower Combat Kills 2066 Aligned with FarCom 300 Met Data Miner 300 Used Data Conduit 3000 Met Zhirov 300 Built Enhanced Grunts 300 Met R17 at Cetus 500 Read Decrypted Archives 300 Found Hidden Lab 3000 Met R17 at Research 2000 Pursued by Intercept 1500 Friendly Fire -45 Cogmind --------- Core Integrity 0/1450 Matter 27/300 Energy 99/100 System Corruption 21% Temperature Cool (9) Movement Core (50) Location -2/Research Parts ------- > --- POWER (3) -------- (None) > --- PROPULSION (2) --- (None) > --- UTILITY (14) ----- (None) > --- WEAPON (4) ------- (None) > --- INVENTORY (5) ---- Experimental Heat Sink Core Stripper Peak State ------------ > --- POWER ------------ Micro Antimatter Reactor Graviton Reactor Reinforced Quantum Reactor > --- PROPULSION ------- Compact Wheel Compact Wheel > --- UTILITY ---------- Experimental Power Amplifier Experimental Coolant Injector Large Storage Unit Advanced Signal Interpreter Core Analyzer Precision Energy Filter Quantum Capacitor Advanced Transmission Jammer Medium Regenerative Plating Advanced Force Field LC Capacitor > --- WEAPON ----------- Compact HERF Cannon Enhanced Nova Cannon Sigix Broadsword > --- INVENTORY -------- Advanced Cryofiber Web Experimental Heat Sink Experimental Coolant Injector Advanced Sensor Array Improved Armor Integrity Analyzer Improved Cloaking Device Centrium Medium Armor Plating Phase Armor Dimensional Node Initializer Subatomic Replicator Warp Cannon Tiamat Missile Launcher Core Stripper [Rating: 201] Favorites ----------- Power Cooled Deuterium Engine Engine Cooled Deuterium Engine Power Core Light Nuclear Core Reactor Reinforced Quantum Reactor Propulsion Compact Wheel Wheel Compact Wheel Utility Core Analyzer Device Advanced Cryofiber Web Storage Lightpack 2.0 Processor Core Analyzer Protection Improved Utility Shielding Artifact LC Capacitor Weapon Heavy EM Shotgun Energy Gun Heavy EM Shotgun Energy Cannon Warp Cannon Ballistic Gun Gauss Rifle Ballistic Cannon Hypercooled Linear Accelerator Launcher Improved Grenade Launcher Special Weapon Improved Remote Datajack Slashing Weapon Sigix Broadsword Build | -11 -10 -10 -10 -9 -8 -7 -6 -6 -6 -6 -5 -5 -5 -5 -5 -5 -4 -4 -4 -3 -3 -2 ------- Run | Yrd Mat Min Exi Min Mat Fac Fac Low Low Dat Pro Fac Ext Cet Arc Hub Fac Arm Lab Res Qua Res Slots Evolved 16 | . . . . . 4 2 2 . . . . 2 . . . . 2 . . 2 . 2 Power 2 | . . . . . . . . . . . . 1 . . . . . . . . . 1 Propulsion . | . . . . . . . . . . . . . . . . . . . . . . . Utility 12 | . . . . . 2 2 2 . . . . 1 . . . . 2 . . 2 . 1 Weapon 2 | . . . . . 2 . . . . . . . . . . . . . . . . . Parts Attached 242 | 5 14 2 . . 43 16 8 5 3 3 8 2 6 4 2 9 41 36 5 9 11 10 Power 30 | 1 3 . . . 6 2 1 . . . 2 . . . . 3 5 5 1 . . 1 Engine 14 | 1 2 . . . 4 2 1 . . . 1 . . . . 3 . . . . . . Core 4 | . 1 . . . 2 . . . . . . . . . . . . 1 . . . . Reactor 12 | . . . . . . . . . . . 1 . . . . . 5 4 1 . . 1 Propulsion 39 | 2 3 . . . 12 2 . 2 . . . . 1 . . 2 7 3 . 3 1 1 Treads . | . . . . . . . . . . . . . . . . . . . . . . . Leg . | . . . . . . . . . . . . . . . . . . . . . . . Wheel 39 | 2 3 . . . 12 2 . 2 . . . . 1 . . 2 7 3 . 3 1 1 Hover . | . . . . . . . . . . . . . . . . . . . . . . . Flight . | . . . . . . . . . . . . . . . . . . . . . . . Utility 90 | . 4 1 . . 7 7 5 2 2 . 2 2 3 4 . 4 13 15 2 5 7 5 Device 48 | . 3 . . . 4 3 3 1 1 . 1 2 1 2 . 2 6 10 . 3 3 3 Storage 7 | . 1 . . . 1 . . . . . . . . . . . . 2 . 1 2 . Processor 10 | . . . . . . 2 2 . . . . . . . . 1 2 2 . 1 . . Hackware . | . . . . . . . . . . . . . . . . . . . . . . . Protection 23 | . . 1 . . 2 2 . 1 1 . 1 . 2 2 . 1 5 1 1 . 2 1 Artifact 2 | . . . . . . . . . . . . . . . . . . . 1 . . 1 Weapon 83 | 2 4 1 . . 18 5 2 1 1 3 4 . 2 . 2 . 16 13 2 1 3 3 Energy Gun 30 | 2 4 1 . . 10 2 . . . 2 . . 1 . . . 4 2 . . 1 1 Energy Cannon 14 | . . . . . . . . . . 1 4 . . . . . . 5 2 1 . 1 Ballistic Gun 32 | . . . . . 7 2 1 1 1 . . . 1 . 2 . 11 6 . . . . Ballistic Cannon 1 | . . . . . . . . . . . . . . . . . . . . . 1 . Launcher 2 | . . . . . 1 . . . . . . . . . . . . . . . . 1 Special Weapon 3 | . . . . . . 1 1 . . . . . . . . . 1 . . . . . Impact Weapon . | . . . . . . . . . . . . . . . . . . . . . . . Slashing Weapon 1 | . . . . . . . . . . . . . . . . . . . . . 1 . Piercing Weapon . | . . . . . . . . . . . . . . . . . . . . . . . Special Melee Weapon . | . . . . . . . . . . . . . . . . . . . . . . . Unidentified Prototypes 18 | . . . . . 4 2 . . . . . . . . . . . 1 6 . 4 1 Corrupted Parts 7 | . . . . . . . . . . . 6 . 1 . . . . . . . . . System Corruption 35 | . . . . . . . . . . . 25 . 10 . . . . . . . . . Parts Lost 56 | . 3 . . . 4 1 . 1 . 1 . . 2 1 1 3 7 24 . . . 8 Power 9 | . 1 . . . . . . . . . . . . . 1 1 2 3 . . . 1 Propulsion 6 | . . . . . 2 . . . . . . . . . . 1 1 1 . . . 1 Utility 22 | . 1 . . . . . . . . . . . . 1 . 1 2 13 . . . 4 Weapon 19 | . 1 . . . 2 1 . 1 . 1 . . 2 . . . 2 7 . . . 2 Highest Loss Streak 15 | . 1 . . . 2 1 . 1 . 1 . . 1 1 1 2 5 15 . . . 8 To Critical Strikes . | . . . . . . . . . . . . . . . . . . . . . . . Average Backups 18 | . 3 6 7 9 14 22 27 24 22 20 25 23 28 28 28 28 32 13 3 7 11 12 Power 1 | . 1 1 1 1 1 1 1 1 1 1 2 1 2 2 2 . 1 . . . . . Propulsion . | . . 1 1 1 . . 2 1 . 1 1 . . . . . 2 . . . . . Utility 10 | . . 2 3 4 5 11 15 16 15 14 17 16 17 16 17 15 16 4 1 6 8 7 Weapon 5 | . 1 1 2 3 6 8 7 5 4 4 5 5 7 9 9 11 11 7 . . 1 2 Tool/Special . | . . . . . . . . . . . . . . . . . . . . . . . Unused Backups 116 | . . 2 . . 15 16 9 2 4 . 5 . 2 2 . 8 21 12 2 1 9 6 Power 11 | . . . . . 3 1 2 . . . . . . . . 1 2 2 . . . . Propulsion 7 | . . . . . 1 1 . . . . 1 . . . . 1 2 1 . . . . Utility 61 | . . 2 . . 9 10 5 . 3 . 2 . 1 1 . 3 11 3 1 1 6 3 Weapon 31 | . . . . . 2 3 2 2 1 . 2 . 1 1 . 3 6 6 . . 1 1 Tool/Special 6 | . . . . . . 1 . . . . . . . . . . . . 1 . 2 2 Average Slot Usage (%) 81 | . 90 100 100 100 78 76 79 79 78 77 79 76 78 82 85 87 87 86 73 73 79 77 Engine 4 | . 10 14 14 14 4 7 6 6 6 6 6 5 5 5 5 11 6 . . . . . Reactor 3 | . . . . . . . . . . . . 5 5 5 5 . 3 8 10 9 9 10 Wheel 12 | . 27 28 28 28 17 11 6 11 13 13 13 11 11 11 11 10 9 9 8 4 9 7 Device 13 | . 11 13 14 14 7 6 11 6 5 6 5 4 12 17 17 11 11 16 20 20 20 24 Storage 5 | . 7 14 14 14 9 7 6 6 5 6 6 5 5 5 5 5 5 3 . 3 4 3 Processor 9 | . . . . . . 3 14 13 13 13 13 11 6 5 5 10 19 19 15 14 12 7 Protection 5 | . . . . . 1 6 5 5 5 6 6 11 11 11 11 11 8 5 3 4 4 3 Energy Gun 9 | . 27 28 28 28 15 14 5 6 6 13 20 17 15 7 8 4 3 7 3 . . 1 Energy Cannon 2 | . . . . . . . . . . . . . . 3 . . 1 5 6 9 8 6 Ballistic Gun 8 | . . . . . 19 15 20 20 20 9 5 . 1 5 11 17 15 6 2 . . . Peak Build Rating 201 | 5 9 9 17 17 65 83 87 85 79 86 91 94 101 108 118 122 133 146 144 158 183 201 Average Rating 100 | 3 7 8 11 17 57 74 84 79 76 79 85 91 97 105 113 114 124 112 108 153 174 185 On Entrance 81 | . 5 8 9 17 17 60 78 83 79 79 86 86 94 101 108 111 122 128 115 144 154 180 Avg Prop Armor Cover (%) . | . . . . . . . . . . . . . . . . . . . . . . . Naked Turns 11 | . . . . . . . . . . . . . . . . . . . . . . 11 Heaviest Build 218 | 7 90 94 92 92 31 43 41 47 46 54 55 66 67 71 74 70 95 196 218 122 139 182 Greatest Support 32 | 20 32 32 32 32 32 28 28 32 32 32 32 32 32 32 32 32 32 32 32 32 32 32 Greatest Overweight (x) 12 | . 2 2 2 2 2 1 1 1 1 1 1 2 2 2 2 3 3 6 12 7 4 5 Average Overweight (x) 2 | . 1 2 2 2 . 1 1 1 . 1 1 2 1 2 1 1 1 2 4 6 3 3 Largest Inventory Capacity 40 | 5 25 25 25 25 40 40 40 40 40 40 40 40 40 40 40 40 40 40 5 10 15 15 Average Capacity 29 | 5 16 25 25 25 39 40 40 40 38 40 40 40 40 40 40 40 40 15 5 9 14 14 Most Carried 40 | 2 4 7 16 16 24 33 32 32 26 28 27 26 32 31 29 32 40 40 5 10 15 15 Average Carried 19 | . 3 6 10 16 18 24 29 25 22 20 25 23 28 28 28 28 32 13 3 7 13 14 Final Capacity 40 | 5 25 25 25 25 40 40 40 40 40 40 40 40 40 40 40 40 40 5 5 10 15 5 Final Carried 34 | 2 4 7 16 16 19 29 32 26 19 26 23 26 27 29 28 32 34 5 4 10 15 3 Class Distribution -------------------- 23% | Hauler-Gunner 17% | Scavenger-Mutant 14% | Hauler-Tank 10% | Hauler-Skirmisher 9% | Scavenger-Gunner 7% | Commander-Tank 6% | Scavenger-Skirmisher 4% | Scavenger-Assassin Dominant Class ---------------- Scavenger-Mutant | -10/Materials Scavenger-Mutant | -10/Mines Scavenger-Mutant | -10/Exiles Scavenger-Mutant | -9/Mines Hauler-Skirmisher | -8/Materials Hauler-Gunner | -7/Factory Hauler-Gunner | -6/Factory Hauler-Gunner | -6/Lower Caves Hauler-Gunner | -6/Lower Caves Hauler-Gunner | -6/Data Miner Hauler-Gunner | -5/Proximity Caves Hauler-Tank | -5/Factory Hauler-Tank | -5/Extension Commander-Tank | -5/Cetus Commander-Tank | -5/Archives Scavenger-Tank | -5/Hub_04(d) Hauler-Tank | -4/Factory Scavenger-Gunner | -4/Armory Scavenger-Gunner | -4/Lab Scavenger-Skirmisher | -3/Research Scavenger-Assassin | -3/Quarantine Scavenger-Mutant | -2/Research Resources | -11 -10 -10 -10 -9 -8 -7 -6 -6 -6 -6 -5 -5 -5 -5 -5 -5 -4 -4 -4 -3 -3 -2 ----------- Run | Yrd Mat Min Exi Min Mat Fac Fac Low Low Dat Pro Fac Ext Cet Arc Hub Fac Arm Lab Res Qua Res Matter Collected 9890 | 174 231 30 . . 1464 609 388 424 240 282 . 162 152 195 . 576 2711 1407 71 323 251 200 Remotely 20 | . 20 . . . . . . . . . . . . . . . . . . . . . Salvage Created 18523 | . 857 112 . . 2438 1576 522 264 186 440 26 510 1289 248 176 1373 3147 2547 71 509 1248 984 Parts 846 | . 43 5 . . 141 77 21 6 9 21 . 14 37 14 8 61 158 78 6 20 64 63 Haulers Intercepted 19 | . 2 . . . 5 4 1 . . . . 2 . . . 1 2 . . 1 1 . Recyclers Shooed 4 | . 1 . . . . . 1 . . . . . . . . 1 1 . . . . . Parts Field Recycled . | . . . . . . . . . . . . . . . . . . . . . . . Retrieved Matter . | . . . . . . . . . . . . . . . . . . . . . . . Parts Self-Destructed 15 | . . . . . . . . 6 9 . . . . . . . . . . . . . Prevented . | . . . . . . . . . . . . . . . . . . . . . . . Parts Restored . | . . . . . . . . . . . . . . . . . . . . . . . Kills | -11 -10 -10 -10 -9 -8 -7 -6 -6 -6 -6 -5 -5 -5 -5 -5 -5 -4 -4 -4 -3 -3 -2 ------- Run | Yrd Mat Min Exi Min Mat Fac Fac Low Low Dat Pro Fac Ext Cet Arc Hub Fac Arm Lab Res Qua Res Combat Hostiles Destroyed 231 | . 13 2 . . 33 21 4 5 3 4 2 3 15 2 3 15 31 35 1 4 12 23 Guns 165 | . 13 2 . . 31 21 4 5 3 . 2 1 8 1 3 15 30 25 . . . 1 Cannons 26 | . . . . . . . . . . . . . . 1 . . . 9 . 4 3 9 AOE 18 | . . . . . 2 . . . . . . . 3 . . . . . . . . 13 Classes Destroyed 22 | . 6 1 . . 5 1 . 1 . . 1 . . . . 1 1 3 . . . 2 Worker 18 | . 1 . . . 5 1 . . . . . . . . . 3 4 . . 1 1 2 Builder 18 | . 1 . . . 5 3 . . . . . . . . . 1 5 . . 1 . 2 Tunneler 3 | . . . . . 1 1 . . . . . . 1 . . . . . . . . . Hauler 19 | . 2 . . . 5 4 1 . . . . 2 . . . 1 2 . . 1 1 . Recycler 24 | . 3 . . . 6 4 1 . . . . . 2 . . 3 2 . . 1 1 1 Mechanic 2 | . . . . . . . . . . . . . . . . . 2 . . . . . Operator 4 | . . . . . 1 . 1 . . . . 1 . . . . . . . 1 . . Drone 2 | . . . . . . . . . . . 2 . . . . . . . . . . . Watcher 12 | . . . . . 2 1 . . . . . . 2 2 . . 1 2 . . 2 . Swarmer 30 | . 3 . . . 3 4 . . . . . . . . . 5 3 4 . . . 8 Saboteur 2 | . . . . . . . . . . . . . . . . . . 1 . . . 1 Grunt 90 | . 10 . . . 18 13 . 3 3 . . . 10 . 3 4 8 13 . . 4 1 Brawler 4 | . . . . . 1 . . 1 . . . . . . . . . 2 . . . . Duelist 6 | . . . . . . . . . . . . . . . . . . 6 . . . . Protector 2 | . . . . . . . . . . . . . . . . . . 2 . . . . Sentry 29 | . . 2 . . 9 1 2 . . . . 3 3 . . 3 5 1 . . . . Specialist 3 | . . . . . . . . . . . . . . . . 2 . . . . . 1 Hunter 14 | . . . . . 2 . 1 . . . . . . . . . 6 . . 4 . 1 Programmer 22 | . . . . . . 3 1 . . . . . . . . . 9 2 . . . 7 Behemoth 3 | . . . . . . . . 1 . . . . 1 . . 1 . . . . . . Armor Guard 2 | . . . . . . . . . . . . . . . . . . 2 . . . . Cetus Guard 2 | . . . . . . . . . . . . . . 2 . . . . . . . . Quarantine Guard 8 | . . . . . . . . . . . . . . . . . . . . . 8 . Enhanced Grunt 4 | . . . . . . . . . . 4 . . . . . . . . . . . . Tracker 3 | . . . . . . . . . . . . . . . . . . 1 . . . 2 Combat Programmer 1 | . . . . . . . . . . . . . . . . . . 1 . . . . Striker 1 | . . . . . . . . . . . . . . . . . . . . . . 1 Executioner 1 | . . . . . . . . . . . . . . . . . . . . . . 1 Thug 1 | . . . . . . . . . . . . . 1 . . . . . . . . . Guerrilla 1 | . . . . . . . . . . . . . . 1 . . . . . . . . Best Kill Streak 11 | . 4 2 . . 11 5 2 4 3 1 1 1 4 2 3 9 10 11 1 2 5 11 Combat Bots Only 10 | . 4 2 . . 5 4 1 4 3 2 1 1 4 1 3 5 5 10 1 2 5 9 Max Kills in Single Turn 5 | . 1 1 . . 2 2 1 1 1 1 1 1 2 1 1 2 2 2 1 1 1 5 Gunslinging 1 | . . . . . 1 1 . . . . . . 1 . . 1 . 1 . . . . Exploded 4 | . . . . . 2 . . . . . . . 2 . . . . . . . . 4 Melee . | . . . . . . . . . . . . . . . . . . . . . . . Uniques/NPCs Destroyed 1 | . . . . . . . . . . . . . . . . . . . 1 . . . A5 (-4/Lab) Combat | -11 -10 -10 -10 -9 -8 -7 -6 -6 -6 -6 -5 -5 -5 -5 -5 -5 -4 -4 -4 -3 -3 -2 -------- Run | Yrd Mat Min Exi Min Mat Fac Fac Low Low Dat Pro Fac Ext Cet Arc Hub Fac Arm Lab Res Qua Res Hostile Shots Fired 1407 | . 60 12 . . 122 81 62 38 14 19 23 10 49 26 1 69 283 175 15 4 2 342 Missed 407 | . 14 6 . . 28 21 28 17 4 8 6 2 16 11 1 20 97 49 2 1 . 76 Hits 1000 | . 46 6 . . 94 60 34 21 10 11 17 8 33 15 . 49 186 126 13 3 2 266 Melee 8 | . . . . . . . . . 3 . . . . . . . . 5 . . . . Projectile 992 | . 46 6 . . 94 60 34 21 7 11 17 8 33 15 . 49 186 121 13 3 2 266 Critical Strikes 43 | . . 1 . . 4 4 . 2 1 . . . . 3 . 2 8 8 . . . 10 Actively Blocked 5 | . . . . . . . . . . . . . . 2 . . 3 . . . . . Part Disruptions 1 | . . . . . . . . . . . . . . . . . . . . . . 1 Damage Taken 16708 | . 533 84 . . 1538 927 195 416 133 510 77 138 591 323 195 553 2423 2574 339 70 145 4944 Core 2642 | . 158 27 . . 238 67 14 . . . . 15 47 26 39 31 226 270 . . . 1484 Absorbed by Shields 2778 | . . . . . . . 129 66 . . . 52 216 117 65 208 1043 . . . . 882 Redirected to Core 842 | . . . . . . . . . . . . . . . . . . . . . . 842 Redirected to Shielding 316 | . . . . . . . . . . . . 24 43 94 . 51 104 . . . . . Ignored by Resistances 88 | . . . . . . . . . . . . . . . . . 88 . . . . . Regen/Repaired (Parts) 1335 | . 54 . . . 178 . . . . . . . . . . . 433 . . 96 97 477 Core Remaining (%) 79 | 100 . . . 26 56 90 . . . . 98 . . . . 84 . . 81 . 100 . Volleys Fired 875 | . 67 4 . . 115 60 23 13 11 57 15 10 38 18 7 35 97 84 28 31 98 64 Largest 4 | . 2 2 . . 4 4 4 4 4 4 4 3 3 3 4 4 4 4 4 1 1 1 Hottest 480 | . 105 105 . . 227 175 135 135 135 211 180 150 186 201 181 181 252 480 448 100 100 120 Shots Fired 2273 | . 134 8 . . 412 235 86 52 44 89 24 30 106 50 22 126 357 267 34 31 101 65 Gun 1901 | . 134 8 . . 406 233 84 52 44 75 12 30 106 35 22 121 347 172 2 . . 18 Cannon 350 | . . . . . . . . . . 14 12 . . 15 . 5 9 95 32 31 101 36 Launcher 17 | . . . . . 6 . . . . . . . . . . . . . . . . 11 Special 5 | . . . . . . 2 2 . . . . . . . . . 1 . . . . . Kinetic 1000 | . . . . . 225 116 63 39 33 1 3 . 11 16 18 91 274 110 . . . . Thermal 1078 | . 134 8 . . 181 117 21 13 11 46 12 . 26 34 4 35 82 157 34 31 94 38 Explosive 17 | . . . . . 6 . . . . . . . . . . . . . . . . 11 Electromagnetic 173 | . . . . . . . . . . 42 9 30 69 . . . . . . . 7 16 Robot Hit Streak 37 | . 13 7 . . 11 11 17 12 10 20 2 23 13 5 7 11 37 29 7 4 12 15 Robot Miss Streak 9 | . 4 . . . 5 5 3 2 7 3 9 3 5 4 3 2 5 6 2 . . 4 Penetration Max 1 | . . . . . 1 1 . . 1 . . . . . 1 1 1 1 . . . . Secondary Targets 23 | . . 1 . . 3 5 . . 1 . . . 1 1 . 4 4 3 . . . . Max Gunslinging Chain 1 | . . 1 . . 1 1 . . 1 . . . 1 1 . 1 1 1 . . . . Capacitor 176 | . . . . . . . . . . . . . . . . . . . . 22 101 53 Shots Hit Robots 1304 | . 84 7 . . 222 117 56 36 27 44 2 28 93 27 11 80 245 176 6 2 8 33 Core Hits 768 | . 37 4 . . 102 55 18 15 11 34 2 21 90 20 6 43 106 103 . 8 17 76 Critical Kills 46 | . . . . . 1 1 . . 1 . . . . . 2 2 13 15 1 1 9 . Critical Parts Destroyed 29 | . . . . . . . 1 . . . . . . 1 1 2 6 18 . . . . Critical Strikes 102 | . . . . . 6 4 4 . 1 1 . . . 2 3 4 24 41 2 1 9 . Burn 20 | . . . . . 5 3 3 . . 1 . . . 1 . . 4 2 1 . . . Meltdown 12 | . . . . . . . . . . . . . . . . . . 1 1 1 9 . Destroy 70 | . . . . . 1 1 1 . 1 . . . . 1 3 4 20 38 . . . . Melee Attacks 15 | . . . . . . . . . . . . . . . . . . . . . 2 13 Impact . | . . . . . . . . . . . . . . . . . . . . . . . Slashing 15 | . . . . . . . . . . . . . . . . . . . . . 2 13 Piercing . | . . . . . . . . . . . . . . . . . . . . . . . Sneak Attacks 1 | . . . . . . . . . . . . . . . . . . . . . . 1 Combat Hostiles . | . . . . . . . . . . . . . . . . . . . . . . . Follow-up Attacks . | . . . . . . . . . . . . . . . . . . . . . . . Damage Inflicted 37846 | . 964 90 . . 4333 2643 972 682 516 721 74 638 3038 1175 416 2350 6683 4484 179 842 1978 5068 Guns 26027 | . 964 90 . . 3744 2512 972 682 516 613 74 603 2385 726 416 2350 6683 2346 21 . . 330 Cannons 6502 | . . . . . . . . . . . . . . 449 . . . 2138 158 842 1978 937 Explosions 5138 | . . . . . 589 131 . . . 108 . 35 653 . . . . . . . . 3622 Melee 173 | . . . . . . . . . . . . . . . . . . . . . . 173 Ramming 6 | . . . . . . . . . . . . . . . . . . . . . . 6 Kinetic 12948 | . . . . . 2009 1102 682 426 376 14 . . 264 287 352 1851 4944 641 . . . . Thermal 17440 | . 964 90 . . 1735 1541 290 256 140 150 . 35 1456 888 64 499 1739 3843 179 842 1859 870 Explosive 4211 | . . . . . 589 . . . . . . . . . . . . . . . . 3622 Electromagnetic 3068 | . . . . . . . . . . 557 74 603 1318 . . . . . . . 119 397 Impact . | . . . . . . . . . . . . . . . . . . . . . . . Slashing 173 | . . . . . . . . . . . . . . . . . . . . . . 173 Piercing . | . . . . . . . . . . . . . . . . . . . . . . . Highest Corruption 25 | . . . . . 4 3 . . . . 25 . 10 10 10 10 4 13 17 1 5 21 Average Corruption 6 | . . . . . 3 2 . . . . 15 . 10 10 10 10 2 9 14 1 4 3 Corruption Purged 3 | . . . . . . 3 . . . . . . . . . . . . . . . . Corruption Blocked . | . . . . . . . . . . . . . . . . . . . . . . . Effects 285 | . . . . . 37 13 . . . . . . 30 26 3 16 18 55 31 2 44 10 Message Errors 50 | . . . . . 5 1 . . . . . . 7 6 . . 3 10 6 . 9 3 Matter Fused 61 | . . . . . 5 2 . . . . . . 5 9 1 4 7 11 8 . 7 2 Heat Flow Errors 31 | . . . . . 4 1 . . . . . . 5 1 1 4 1 6 2 . 6 . Energy Discharges 39 | . . . . . 5 2 . . . . . . 3 2 . 1 4 10 4 . 8 . Parts Rejected 3 | . . . . . 1 . . . . . . . . . . 1 1 . . . . . Parts Fused 4 | . . . . . 1 1 . . . . . . . . . . . . 1 1 . . Data Loss (minor) 43 | . . . . . 9 3 . . . . . . 6 3 . 4 . 9 2 1 6 . Data Loss (major) 20 | . . . . . 2 . . . . . . . 2 2 . . 1 2 5 . 4 2 Misfires 13 | . . . . . 1 2 . . . . . . . 2 . 1 . 1 1 . 3 2 Alerts 6 | . . . . . 2 . . . . . . . 1 1 . . . . 1 . 1 . Misdirections 2 | . . . . . . . . . . . . . . . . 1 . . . . . 1 Weapon Failures 13 | . . . . . 2 1 . . . . . . 1 . 1 . 1 6 1 . . . Overload Shots . | . . . . . . . . . . . . . . . . . . . . . . . Overflow Damage 448 | . . . . . 5 50 . . . 5 . . 52 . . . . 70 . 79 82 105 Projectiles 299 | . . . . . . . . . . . . . . . . . . 70 . 79 82 68 Explosions 149 | . . . . . 5 50 . . . 5 . . 52 . . . . . . . . 37 Melee . | . . . . . . . . . . . . . . . . . . . . . . . Knockbacks . | . . . . . . . . . . . . . . . . . . . . . . . Impact . | . . . . . . . . . . . . . . . . . . . . . . . Kinetic . | . . . . . . . . . . . . . . . . . . . . . . . Secondary . | . . . . . . . . . . . . . . . . . . . . . . . Self-Inflicted Damage 269 | . . . . . 11 . . . . . . . 107 . . . . . . . . 151 Shots 6 | . . . . . 1 . . . . . . . 2 . . . . . . . . 3 Rammed 1 | . . . . . . . . . . . . . . . . . . . . . . 1 Targets Rammed 1 | . . . . . . . . . . . . . . . . . . . . . . 1 Kicked . | . . . . . . . . . . . . . . . . . . . . . . . Crushed . | . . . . . . . . . . . . . . . . . . . . . . . Highest Temperature 449 | . 300 96 . . 420 210 78 287 194 200 192 168 331 339 213 226 360 368 449 . 208 403 Average Temperature 103 | . 99 50 . . 116 106 34 101 102 63 104 74 83 143 95 63 108 111 210 . 92 123 Received Heat Transfer 2776 | . 273 54 . . 684 333 40 318 81 . . 24 111 36 . 139 283 301 . . . 99 Effects 9 | . . . . . 2 . . . . . . . 2 1 . . . 1 3 . . . Shutdowns 1 | . . . . . 1 . . . . . . . . . . . . . . . . . Energy Bleed 2 | . . . . . . . . . . . . . . 1 . . . 1 . . . . Interference 5 | . . . . . 1 . . . . . . . 2 . . . . . 2 . . . Short Circuit 1 | . . . . . . . . . . . . . . . . . . . 1 . . . Siege Activations . | . . . . . . . . . . . . . . . . . . . . . . . Martial Activations . | . . . . . . . . . . . . . . . . . . . . . . . Shielding Activations . | . . . . . . . . . . . . . . . . . . . . . . . Robots Disrupted 1 | . . . . . . . . . . 1 . . . . . . . . . . . . Combat Hostiles 1 | . . . . . . . . . . 1 . . . . . . . . . . . . Robots Corrupted 12 | . . . . . . . . . . 4 . 3 4 . . . . . . . 1 . Combat Hostiles 11 | . . . . . . . . . . 4 . 2 4 . . . . . . . 1 . Parts Fried 23 | . . . . . . . . . . 10 . 6 2 . . . . . . . 1 4 Impact Corruptions . | . . . . . . . . . . . . . . . . . . . . . . . Robots Melted 13 | . . . . . . . . . . . . . . . . . 1 1 1 1 9 . Combat Hostiles 11 | . . . . . . . . . . . . . . . . . 1 1 1 . 8 . Parts Melted 86 | . 3 1 . . 8 4 2 . . . . . 1 2 . . 18 23 5 4 15 . Heat Transferred 23156 | . 2197 211 . . 4207 2838 740 444 259 285 . 50 1059 495 74 703 2701 4022 170 629 1406 666 Parts Sabotaged . | . . . . . . . . . . . . . . . . . . . . . . . Parts Stolen 3 | . . . . . . . . . 3 . . . . . . . . . . . . . Parts Stripped . | . . . . . . . . . . . . . . . . . . . . . . . Power Chain Reactions 6 | . . . . . . . . . . 1 . 1 4 . . . . . . . . . Alert | -11 -10 -10 -10 -9 -8 -7 -6 -6 -6 -6 -5 -5 -5 -5 -5 -5 -4 -4 -4 -3 -3 -2 ------- Run | Yrd Mat Min Exi Min Mat Fac Fac Low Low Dat Pro Fac Ext Cet Arc Hub Fac Arm Lab Res Qua Res Maximum Alert Level 3 | . . . . . 1 1 . . . . . 1 3 2 3 2 3 3 . . . 2 Low Security (%) 55 | 100 100 100 . 100 63 56 100 . . . . 22 60 . 6 . 9 . . 100 100 60 Level 1 20 | . . . . . 36 43 . . . . . 77 6 . 61 38 42 16 . . . 35 Level 2 17 | . . . . . . . . . . . . . 11 100 18 61 26 62 . . . 3 Level 3 6 | . . . . . . . . . . . . . 20 . 12 . 21 21 . . . . Level 4 . | . . . . . . . . . . . . . . . . . . . . . . . Level 5 . | . . . . . . . . . . . . . . . . . . . . . . . High Security . | . . . . . . . . . . . . . . . . . . . . . . . Max Security . | . . . . . . . . . . . . . . . . . . . . . . . Peak Influence 950 | . 149 40 . . 396 338 154 . . . . 310 950 672 821 637 885 779 . 42 174 563 Initial 530 | . . . . . . . 154 . . . . 300 66 530 215 294 303 422 . . . 15 Average 231 | . 58 4 . . 149 156 86 . . . . 245 314 568 369 428 437 515 . 6 65 150 Influence Increases 10297 | . 404 40 . . 1236 716 165 120 70 . 25 426 1480 401 757 587 1200 1060 . 168 606 836 Destroy 0b10 Robot/C 5240 | . 260 40 . . 700 420 80 100 60 . . 60 660 160 340 300 620 660 . 80 240 460 Destroy 0b10 Robot/NC 555 | . 35 . . . 125 70 15 . . . 10 15 40 10 20 40 80 20 . 25 25 25 Destroy Leader 1078 | . 54 . . . 204 100 42 20 10 . . 34 64 . . 70 156 116 . 22 96 90 Allied During Kill 1085 | . . . . . 10 . . . . . . . 564 170 341 . . . . . . . Successful Hack 145 | . 25 . . . 11 19 12 . . . . . 32 . . 5 34 7 . . . . Disable Machine 735 | . . . . . 60 60 15 . . . . 15 30 15 15 75 135 135 . 15 165 . Destroy Structure 799 | . . . . . 51 17 1 . . . . 2 90 46 26 52 100 62 . 26 80 246 Advance Influence 300 | . . . . . . . . . . . . 300 . . . . . . . . . . Partial Spotted 30 | . . . . . 30 . . . . . . . . . . . . . . . . . Lose Combat Pursuer 330 | . 30 . . . 45 30 . . . . 15 . . . 15 45 75 60 . . . 15 Influence Decreases 9749 | . 404 40 . . 1236 400 448 153 70 . 25 290 668 810 454 808 957 1184 740 168 579 315 Entered New Map 3047 | . . . . . . . 162 13 . . . . 70 418 324 548 318 442 740 . . 12 Time Decay 5025 | . 374 40 . . 559 390 286 140 70 . 25 190 458 342 40 230 559 502 . 168 429 223 Search Patrol Dispatched 100 | . . . . . . . . . . . . 100 . . . . . . . . . . Lost Part 540 | . 30 . . . 40 10 . . . . . . 20 10 10 30 70 240 . . . 80 Lost Ally 290 | . . . . . 40 . . . . . . . 120 40 80 . 10 . . . . . Purge Threat 747 | . . . . . 597 . . . . . . . . . . . . . . . 150 . Squads Dispatched 50 | . 2 . . . 4 9 2 . . . . 1 2 . . 5 9 6 . 6 1 3 Investigation 10 | . . . . . 1 2 . . . . . . 1 . . 1 . . . 4 1 . Extermination 12 | . . . . . . 3 1 . . . . 1 . . . 1 3 2 . . . 1 Reinforcement 16 | . 2 . . . 3 3 1 . . . . . 1 . . 2 2 . . 1 . 1 Assault 4 | . . . . . . . . . . . . . . . . 1 . 3 . . . . Garrison 5 | . . . . . . 1 . . . . . . . . . . 4 . . . . . Intercept 3 | . . . . . . . . . . . . . . . . . . 1 . 1 . 1 Searches Triggered 1 | . . . . . . . . . . . . 1 . . . . . . . . . . Construction Impeded 5 | . . . . . 2 . . . . . . . 1 . . . 1 . . . . 1 Haulers Reinforced 4 | . . . . . . 2 . . . . . . . . . . 1 . . 1 . . Active Scanning Responses . | . . . . . . . . . . . . . . . . . . . . . . . Cargo Convoy Interrupts 1 | . . . . . . . . . . . . . . . . . . . . . . 1 Stealth | -11 -10 -10 -10 -9 -8 -7 -6 -6 -6 -6 -5 -5 -5 -5 -5 -5 -4 -4 -4 -3 -3 -2 --------- Run | Yrd Mat Min Exi Min Mat Fac Fac Low Low Dat Pro Fac Ext Cet Arc Hub Fac Arm Lab Res Qua Res Distress Signals 27 | . 3 . . . 6 2 . . . . . . 2 2 1 2 1 1 . 6 . 1 Communications Jammed 161 | . . . . . . . . . . . . . . . . . . 147 . . . 14 Distress Signals 161 | . . . . . . . . . . . . . . . . . . 147 . . . 14 Times Spotted 364 | . 26 2 . . 48 29 5 5 6 5 3 6 35 9 17 28 45 46 1 4 6 38 Peak Tracking Total 18 | . 7 2 . . 7 5 1 3 3 2 2 2 5 5 16 8 8 7 1 2 4 18 Tactical Retreats 17 | . 2 . . . 3 2 . . . . 1 . . . 1 2 2 3 . . . 1 Traps | -11 -10 -10 -10 -9 -8 -7 -6 -6 -6 -6 -5 -5 -5 -5 -5 -5 -4 -4 -4 -3 -3 -2 ------- Run | Yrd Mat Min Exi Min Mat Fac Fac Low Low Dat Pro Fac Ext Cet Arc Hub Fac Arm Lab Res Qua Res Traps Triggered 14 | . . . . . 3 3 . . . . . . 2 . . . 1 . . 1 4 . Indirectly . | . . . . . . . . . . . . . . . . . . . . . . . Trap Hack Attempts . | . . . . . . . . . . . . . . . . . . . . . . . Triggered . | . . . . . . . . . . . . . . . . . . . . . . . Disarmed 12 | . 6 . . . 6 . . . . . . . . . . . . . . . . . Reprogrammed . | . . . . . . . . . . . . . . . . . . . . . . . Reused . | . . . . . . . . . . . . . . . . . . . . . . . Traps Extracted . | . . . . . . . . . . . . . . . . . . . . . . . Installed . | . . . . . . . . . . . . . . . . . . . . . . . Triggered . | . . . . . . . . . . . . . . . . . . . . . . . Machines | -11 -10 -10 -10 -9 -8 -7 -6 -6 -6 -6 -5 -5 -5 -5 -5 -5 -4 -4 -4 -3 -3 -2 ---------- Run | Yrd Mat Min Exi Min Mat Fac Fac Low Low Dat Pro Fac Ext Cet Arc Hub Fac Arm Lab Res Qua Res Machines Disabled 56 | . . . . . 4 4 1 . . . . 1 2 1 1 5 9 9 7 1 11 . Max in Single Turn 1 | . . . . . 1 1 1 . . . . 1 1 1 . 1 1 1 1 1 1 . Energy Cycler 1 | . . . . . . . . . . . . . 1 . . . . . . . . . Machines Repaired . | . . . . . . . . . . . . . . . . . . . . . . . Machines Dismantled . | . . . . . . . . . . . . . . . . . . . . . . . Machines Sabotaged . | . . . . . . . . . . . . . . . . . . . . . . . Overloaded Fab Kills . | . . . . . . . . . . . . . . . . . . . . . . . Hacking | -11 -10 -10 -10 -9 -8 -7 -6 -6 -6 -6 -5 -5 -5 -5 -5 -5 -4 -4 -4 -3 -3 -2 --------- Run | Yrd Mat Min Exi Min Mat Fac Fac Low Low Dat Pro Fac Ext Cet Arc Hub Fac Arm Lab Res Qua Res Machines Accessed 67 | . 5 . 2 . 12 8 2 . . 3 . 1 6 1 1 4 7 5 1 1 7 1 Terminals 43 | . 4 . . . 7 4 1 . . . . 1 6 1 . 4 5 3 . 1 5 1 Fabricators 4 | . . . . . . 3 . . . . . . . . . . . 1 . . . . Repair Stations 7 | . 1 . . . 2 1 1 . . . . . . . . . 1 1 . . . . Recycling Units 1 | . . . . . 1 . . . . . . . . . . . . . . . . . Scanalyzers 5 | . . . . . 2 . . . . . . . . . . . 1 . . . 2 . Garrison Access . | . . . . . . . . . . . . . . . . . . . . . . . Total Hacks 184 | . 18 . 2 . 36 18 4 . . 16 . 1 9 1 25 6 15 11 4 3 14 1 Successful 109 | . 11 . 2 . 19 6 3 . . 16 . 1 5 . 25 1 9 4 4 . 3 . Failed 73 | . 6 . . . 16 12 1 . . . . . 4 1 . 5 6 7 . 3 11 1 Catastrophic 13 | . . . . . 1 4 . . . . . . 1 1 . 1 . 1 . 1 3 . Database Lockouts 2 | . 1 . . . 1 . . . . . . . . . . . . . . . . . Manual 40 | . 9 . 1 . 6 2 1 . . . . . 4 1 . 6 5 3 . . 2 . Terminals 96 | . 14 . . . 22 11 2 . . . . 1 9 1 . 6 10 7 . 3 9 1 Fabricators 7 | . . . . . . 5 . . . . . . . . . . . 2 . . . . Repair Stations 20 | . 4 . . . 7 2 2 . . . . . . . . . 3 2 . . . . Recycling Units 3 | . . . . . 3 . . . . . . . . . . . . . . . . . Scanalyzers 11 | . . . . . 4 . . . . . . . . . . . 2 . . . 5 . Garrison Access . | . . . . . . . . . . . . . . . . . . . . . . . Terminal Hacks 75 | . 6 . 2 . 8 2 1 . . 16 . 1 4 . 25 . 3 2 4 . 1 . Record 31 | . . . 1 . . . . . . 2 . . . . 25 . . . 3 . . . Part Schematic 8 | . . . . . . . . . . 8 . . . . . . . . . . . . Robot Schematic 3 | . . . . . . . . . . 3 . . . . . . . . . . . . Robot Analysis 1 | . 1 . . . . . . . . . . . . . . . . . . . . . Prototype ID Bank 9 | . 3 . . . 2 1 . . . 3 . . . . . . . . . . . . Open Door 7 | . . . . . . . . . . . . 1 4 . . . . 2 . . . . Unreport Threat 5 | . . . . . 4 . . . . . . . . . . . . . . . 1 . Locate Traps 3 | . . . . . . . . . . . . . . . . . 3 . . . . . Disarm Traps 2 | . 1 . . . 1 . . . . . . . . . . . . . . . . . Hauler Manifests 4 | . 1 . . . 1 1 1 . . . . . . . . . . . . . . . Proto ID Catalog 1 | . . . 1 . . . . . . . . . . . . . . . . . . . Release Object 1 | . . . . . . . . . . . . . . . . . . . 1 . . . Fabricator Hacks 2 | . . . . . . 1 . . . . . . . . . . . 1 . . . . Load Schematic 2 | . . . . . . 1 . . . . . . . . . . . 1 . . . . Repair Station Hacks 13 | . 4 . . . 5 1 1 . . . . . . . . . 2 . . . . . Scan Component 8 | . 2 . . . 3 1 1 . . . . . . . . . 1 . . . . . Repair 5 | . 2 . . . 2 . . . . . . . . . . . 1 . . . . . Recycling Unit Hacks 1 | . . . . . 1 . . . . . . . . . . . . . . . . . Retrieve Components 1 | . . . . . 1 . . . . . . . . . . . . . . . . . Scanalyzer 6 | . . . . . 3 . . . . . . . . . . . 1 . . . 2 . Insert Component 3 | . . . . . 1 . . . . . . . . . . . . . . . 2 . Analyze 1 | . . . . . 1 . . . . . . . . . . . . . . . . . Retrieve Study 2 | . . . . . 1 . . . . . . . . . . . 1 . . . . . Garrison Access Hacks . | . . . . . . . . . . . . . . . . . . . . . . . Unauthorized Hacks 12 | . 1 . . . 2 2 1 . . . . . 1 . . 1 3 1 . . . . Terminals 11 | . 1 . . . 2 1 1 . . . . . 1 . . 1 3 1 . . . . Assimilate 1 | . . . . . . . . . . . . . . . . . 1 . . . . . Botnet 9 | . 1 . . . 2 1 1 . . . . . 1 . . 1 2 . . . . . Disrupt 1 | . . . . . . . . . . . . . . . . . . 1 . . . . Fabricators 1 | . . . . . . 1 . . . . . . . . . . . . . . . . Haulers 1 | . . . . . . 1 . . . . . . . . . . . . . . . . Repair Stations . | . . . . . . . . . . . . . . . . . . . . . . . Recycling Units . | . . . . . . . . . . . . . . . . . . . . . . . Scanalyzers . | . . . . . . . . . . . . . . . . . . . . . . . Garrison Access . | . . . . . . . . . . . . . . . . . . . . . . . Data Cores Recovered 1 | . . . . . . . . . . . . . . . . . . . . 1 . . Used . | . . . . . . . . . . . . . . . . . . . . . . . Hacking Detections 49 | . 3 . . . 8 8 2 . . . . 1 3 1 . 3 7 4 . 1 7 1 Full Trace Events 5 | . . . . . 1 2 . . . . . . . . . 1 . . . 1 . . Feedback Events 1 | . . . . . . . . . . . . . . . . . . . . 1 . . Corruption 1 | . . . . . . . . . . . . . . . . . . . . 1 . . Feedback Blocked . | . . . . . . . . . . . . . . . . . . . . . . . Robot Schematics Acquired 3 | . . . . . . . . . . 3 . . . . . . . . . . . . Robots Built . | . . . . . . . . . . . . . . . . . . . . . . . Authchips . | . . . . . . . . . . . . . . . . . . . . . . . Time . | . . . . . . . . . . . . . . . . . . . . . . . Total Robot Build Rating . | . . . . . . . . . . . . . . . . . . . . . . . Part Schematics Acquired 10 | . . . . . 1 . . . . 8 . . . . . . . . . . 1 . Parts Built . | . . . . . . . . . . . . . . . . . . . . . . . Authchips . | . . . . . . . . . . . . . . . . . . . . . . . Time . | . . . . . . . . . . . . . . . . . . . . . . . Total Part Build Rating . | . . . . . . . . . . . . . . . . . . . . . . . Part Studies Acquired 2 | . . . . . 1 . . . . . . . . . . . 1 . . . . . Parts Repaired 5 | . 2 . . . 2 . . . . . . . . . . . 1 . . . . . Time 216 | . 58 . . . 104 . . . . . . . . . . . 54 . . . . . Parts Recycled . | . . . . . . . . . . . . . . . . . . . . . . . Recycled Matter . | . . . . . . . . . . . . . . . . . . . . . . . Retrieved Matter . | . . . . . . . . . . . . . . . . . . . . . . . Retrieved Components 10 | . . . . . 10 . . . . . . . . . . . . . . . . . Parts Scanalyzed 1 | . . . . . 1 . . . . . . . . . . . . . . . . . Part Schematics Acquired 1 | . . . . . 1 . . . . . . . . . . . . . . . . . Parts Damaged . | . . . . . . . . . . . . . . . . . . . . . . . Bothacking | -11 -10 -10 -10 -9 -8 -7 -6 -6 -6 -6 -5 -5 -5 -5 -5 -5 -4 -4 -4 -3 -3 -2 ------------ Run | Yrd Mat Min Exi Min Mat Fac Fac Low Low Dat Pro Fac Ext Cet Arc Hub Fac Arm Lab Res Qua Res Used RIF Installer . | . . . . . . . . . . . . . . . . . . . . . . . Robots Hacked 2 | . . . . . . 1 1 . . . . . . . . . . . . . . . Non-combat 2 | . . . . . . 1 1 . . . . . . . . . . . . . . . Combat . | . . . . . . . . . . . . . . . . . . . . . . . Robot Hacks Applied 2 | . . . . . . 1 1 . . . . . . . . . . . . . . . find_chute 2 | . . . . . . 1 1 . . . . . . . . . . . . . . . Relay Couplers Released 4 | . . . . . . . . . . . . . . . . . . . . . . 4 Programmers 4 | . . . . . . . . . . . . . . . . . . . . . . 4 Fabnet Peak Effective % . | . . . . . . . . . . . . . . . . . . . . . . . Robots Rewired 19 | . . . . . . . . . . . . . 19 . . . . . . . . . Allies Hacked . | . . . . . . . . . . . . . . . . . . . . . . . Hacks Repelled . | . . . . . . . . . . . . . . . . . . . . . . . Allies | -11 -10 -10 -10 -9 -8 -7 -6 -6 -6 -6 -5 -5 -5 -5 -5 -5 -4 -4 -4 -3 -3 -2 -------- Run | Yrd Mat Min Exi Min Mat Fac Fac Low Low Dat Pro Fac Ext Cet Arc Hub Fac Arm Lab Res Qua Res Total Allies 35 | . . 3 . . . . . . . . . . 26 5 . . 1 . . . . . Largest Group 24 | . . 3 3 3 3 . . . . . . . 21 24 21 . 1 . . . . . Highest-Rated Group 1149 | . . 40 40 40 40 . . . . . . . 742 1149 972 . 10 . . . . . Highest-Rated Ally 159 | . . 16 16 16 16 . . . . . . . 159 159 137 . 10 . . . . . Total Orders 3 | . . . . . 1 . . . . . . . . 2 . . . . . . . . STAY 1 | . . . . . . . . . . . . . . 1 . . . . . . . . ROAM 1 | . . . . . 1 . . . . . . . . . . . . . . . . . FOLLOW 1 | . . . . . . . . . . . . . . 1 . . . . . . . . Ally Attacks 312 | . . . . . 12 . . 4 . . . . 160 47 89 . . . . . . . Total Damage 7131 | . . . . . 122 . . 191 . . . . 2643 1465 2710 . . . . . . . Kills 50 | . . . . . 2 . . . . . . . 21 6 21 . . . . . . . Allies Corrupted 1 | . . . . . . . . . . . . . 1 . . . . . . . . . Allies Melted 1 | . . . . . . . . 1 . . . . . . . . . . . . . . Turrets Deployed 1 | . . . . . . . . 1 . . . . . . . . . . . . . . Intel | -11 -10 -10 -10 -9 -8 -7 -6 -6 -6 -6 -5 -5 -5 -5 -5 -5 -4 -4 -4 -3 -3 -2 ------- Run | Yrd Mat Min Exi Min Mat Fac Fac Low Low Dat Pro Fac Ext Cet Arc Hub Fac Arm Lab Res Qua Res Active Infowar (turns) 5538 | . . . . . . . 75 72 . . . . . . . . . 1192 687 1006 1915 591 Optics 3484 | . . . . . . . . . . . . . . . . . . 592 687 1006 1199 . Sensors 3329 | . . . . . . . 75 72 . . . . . . . . . . . 750 1915 517 Cloaking 773 | . . . . . . . . . . . . . . . . . . . . 256 . 517 Jamming 2810 | . . . . . . . . . . . . . . . . . . 877 687 495 175 576 Robot Analysis Total 154 | . 1 . . . . . . . . 153 . . . . . . . . . . . . Derelict Logs Recovered 3 | . . 1 . . . . . 2 . . . . . . . . . . . . . . Drone Launches . | . . . . . . . . . . . . . . . . . . . . . . . Drone Recoveries . | . . . . . . . . . . . . . . . . . . . . . . . Exploration | -11 -10 -10 -10 -9 -8 -7 -6 -6 -6 -6 -5 -5 -5 -5 -5 -5 -4 -4 -4 -3 -3 -2 ------------- Run | Yrd Mat Min Exi Min Mat Fac Fac Low Low Dat Pro Fac Ext Cet Arc Hub Fac Arm Lab Res Qua Res Turns Passed 17481 | 42 1031 302 373 32 1741 1290 624 560 550 446 355 387 1157 776 86 490 1654 1346 687 1006 1915 631 Spaces Moved 10825 | 43 579 207 284 25 1147 909 448 475 463 233 289 267 671 387 53 298 931 677 359 501 1239 340 Core 25 | 4 . . . . . . . . . . . . . . . . . . . . . 21 Treads . | . . . . . . . . . . . . . . . . . . . . . . . Legs . | . . . . . . . . . . . . . . . . . . . . . . . Wheels 10800 | 39 579 207 284 25 1147 909 448 475 463 233 289 267 671 387 53 298 931 677 359 501 1239 319 Hover . | . . . . . . . . . . . . . . . . . . . . . . . Flight . | . . . . . . . . . . . . . . . . . . . . . . . Fastest Speed 50 | 50 80 130 130 130 85 100 115 105 90 105 105 120 105 120 105 105 105 105 120 135 135 50 Average Speed 121 | 77 118 130 130 130 90 108 115 106 104 105 105 120 116 120 119 112 116 132 155 186 140 134 Slowest Speed 270 | 80 130 130 130 130 110 115 115 115 105 105 105 120 120 120 120 135 135 180 270 195 150 165 Overloaded Moves . | . . . . . . . . . . . . . . . . . . . . . . . Propulsion Burnouts . | . . . . . . . . . . . . . . . . . . . . . . . Robots Hopped . | . . . . . . . . . . . . . . . . . . . . . . . Potential Cave-ins 3 | . . . . . . . . . . . 3 . . . . . . . . . . . Cave-ins Triggered . | . . . . . . . . . . . . . . . . . . . . . . . Exploration Rate (%) 48 | 3 85 40 60 10 84 33 11 67 60 80 55 9 85 63 76 35 19 32 99 13 89 8 Regions Visited 22 Branch Regions 14 Pre-discovered Areas 29 | . . . 1 . . . . . . 28 . . . . . . . . . . . . Known Exits Taken 6 | . . . . . . 1 1 1 . . . . . . . . . . 1 1 1 . Unknown Exits Taken 16 | 1 1 1 1 1 1 . . . 1 1 1 1 1 1 1 1 1 1 . . . . Scrap Searched 4 | . . . . . . . . 3 1 . . . . . . . . . . . . . Spaces Dug 82 | . . . . . . . . . . 13 2 . . . . 2 4 9 . 9 30 13 Terrain Destroyed 433 | . . . . . 55 13 . 1 . 26 12 1 39 3 5 27 58 34 2 13 43 101 Melee 13 | . . . . . . . . . . . . . . . . . . . . . 2 11 Projectile 220 | . . . . . 5 1 . 1 . 14 12 . 1 3 5 27 56 28 2 13 41 11 AOE 192 | . . . . . 50 12 . . . 12 . 1 38 . . . . . . . . 79 Terrain Rammed . | . . . . . . . . . . . . . . . . . . . . . . . Walls Destroyed . | . . . . . . . . . . . . . . . . . . . . . . . Machines Disabled . | . . . . . . . . . . . . . . . . . . . . . . . Actions | -11 -10 -10 -10 -9 -8 -7 -6 -6 -6 -6 -5 -5 -5 -5 -5 -5 -4 -4 -4 -3 -3 -2 --------- Run | Yrd Mat Min Exi Min Mat Fac Fac Low Low Dat Pro Fac Ext Cet Arc Hub Fac Arm Lab Res Qua Res Total 13795 | 49 785 233 288 24 1595 1077 508 504 503 360 317 312 968 661 61 380 1281 965 479 568 1410 467 Wait 998 | . 112 11 . . 198 24 11 1 1 48 . 23 53 241 . 6 116 68 41 11 15 18 Move 10803 | 42 578 206 283 24 1146 908 447 474 462 232 288 266 670 386 52 297 930 676 358 500 1238 340 Hop . | . . . . . . . . . . . . . . . . . . . . . . . Pick Up 268 | 2 4 4 5 . 35 36 10 3 22 11 . 6 11 5 . 17 39 26 6 8 17 1 Fast Attach 99 | 5 6 2 . . 13 3 2 1 2 . 1 . 1 . . 3 11 22 13 5 5 4 Attach 67 | . 2 . . . 6 6 2 4 1 4 1 2 5 1 1 4 12 5 3 3 1 4 Detach 75 | . 1 2 . . 10 7 2 3 . 3 2 1 3 . . 1 13 7 10 5 3 2 Swap 199 | . 8 1 . . 37 11 9 1 1 2 9 1 2 7 1 9 30 38 1 2 14 15 Drop 206 | . 7 3 . . 35 14 2 4 3 3 1 3 4 3 . 8 33 39 19 3 17 5 Fire 875 | . 67 4 . . 115 60 23 13 11 57 15 10 38 18 7 35 97 84 28 31 98 64 Melee 15 | . . . . . . . . . . . . . . . . . . . . . 2 13 Ram 1 | . . . . . . . . . . . . . . . . . . . . . . 1 Kick . | . . . . . . . . . . . . . . . . . . . . . . . Crush . | . . . . . . . . . . . . . . . . . . . . . . . Escape Stasis 24 | . . . . . . 8 . . . . . . 16 . . . . . . . . . Rewire 165 | . . . . . . . . . . . . . 165 . . . . . . . . . Trap . | . . . . . . . . . . . . . . . . . . . . . . . Miscellaneous . | . . . . . . . . . . . . . . . . . . . . . . . Route ------- -11/Scrapyard -10/Materials (discovered 4 exits: *Mat x3 / [*Min]) -10/Mines (discovered 2 exits: *Mat / *Exi) -10/Exiles -9/Mines -8/Materials (discovered 2 exits: *Fac x2) -7/Factory (discovered 2 exits: *Fac x2) -6/Factory -6/Lower Caves -6/Lower Caves -6/Data Miner -5/Proximity Caves -5/Factory -5/Extension (discovered 2 exits: *Fac / *Cet) -5/Cetus (discovered 2 exits: *Fac / *Arc) -5/Archives -5/Hub_04(d) -4/Factory (discovered 3 exits: *Res x2 / *Arm) -4/Armory -4/Lab -3/Research (discovered 2 exits: *Res / *Qua) -3/Quarantine -2/Research History --------- Turn | Location | Event 2 | -11/Scrapyard | Met Revision 17 3 | -11/Scrapyard | Discovered new exit (range 15) 43 | -11/Scrapyard | Entered Materials 84 | -10/Materials | Central database locked down 259 | -10/Materials | Core integrity fell below 50% 309 | -10/Materials | Build established: Mutant 541 | -10/Materials | Repaired Com. Wheel 575 | -10/Materials | Repaired Particle Gun 611 | -10/Materials | Discovered new exit (range 7) 702 | -10/Materials | Discovered new exit (range 16) 833 | -10/Materials | Discovered new exit (range 6) 878 | -10/Materials | Build established: Scavenger-Mutant 991 | -10/Materials | Discovered new exit (range 6) 1074 | -10/Materials | Entered Mines 1168 | -10/Mines | Met a Derelict bent on vengeance 1233 | -10/Mines | Identified exit to Materials 1287 | -10/Mines | Assisted by bots powering up and referring to "LRC-V3" 1367 | -10/Mines | Deemed a non-threat by the Exiles lab entrance 1368 | -10/Mines | Discovered new exit (range 5) 1376 | -10/Mines | Entered Exiles 1376 | -10/Exiles | Accompanied by 3 allies 1415 | -10/Exiles | Met 8R-AWN 1439 | -10/Exiles | Met EX-HEX 1478 | -10/Exiles | Met EX-BIN 1492 | -10/Exiles | Aligned with FarCom system 1493 | -10/Exiles | Given EX-Vault access code 1529 | -10/Exiles | Met EX-DEC 1534 | -10/Exiles | Learned location of Zion (-7) 1597 | -10/Exiles | Opened EX-Vault 1608 | -10/Exiles | Found Lightpack 2.0 1613 | -10/Exiles | Found AWS/Autocannon 1615 | -10/Exiles | Found Deploy-a-Sentry 1617 | -10/Exiles | Found Deploy-a-Sentry 1620 | -10/Exiles | Found Deploy-a-Sentry 1648 | -10/Exiles | Warned to stay clear of 0b10 Research branches 1731 | -10/Exiles | Discovered new exit (range 14) 1749 | -10/Exiles | Stole three prototypes: Lightpack 2.0, AWS/Autocannon, Deploy-a-Sentry 1749 | -10/Exiles | Entered Mines 1749 | -9/Mines | Accompanied by 3 allies 1770 | -9/Mines | Discovered new exit (range 7) 1781 | -9/Mines | Entered Materials 1781 | -8/Materials | Accompanied by 3 allies 1781 | -8/Materials | Evolved 4 slots: Utility x2, Weapon x2 1802 | -8/Materials | Central database locked down 2077 | -8/Materials | Build established: Hauler-Skirmisher 2743 | -8/Materials | Discovered new exit (range 14) 2828 | -8/Materials | Repaired Gauss Rifle 2889 | -8/Materials | Repaired Enh. Autogun 3461 | -8/Materials | Discovered new exit (range 4) 3522 | -8/Materials | Entered Factory 3522 | -7/Factory | Evolved 2 slots: Utility x2 3524 | -7/Factory | FarCom data flow suspended 3686 | -7/Factory | Discovered new exit (range 16) 3818 | -7/Factory | Build established: Hauler-Tank 3824 | -7/Factory | Identified exit to Factory 4054 | -7/Factory | Garrison activated, responded to threat 4429 | -7/Factory | Build established: Hauler-Gunner 4720 | -7/Factory | Discovered exit to Factory (range 15) 4812 | -7/Factory | Entered another Factory area 4812 | -6/Factory | Evolved 2 slots: Utility x2 5220 | -6/Factory | Discovered new exit (range 15) 5319 | -6/Factory | Identified exit to Lower Caves 5436 | -6/Factory | Entered Lower Caves 5478 | -6/Lower Caves | DAS Turret deployed 5483 | -6/Lower Caves | Spotted B-75 Beast 5529 | -6/Lower Caves | Destroyed B-75 Beast 5559 | -6/Lower Caves | Learned Factory machine intel 5749 | -6/Lower Caves | Identified exit to Lower Caves 5996 | -6/Lower Caves | Entered another Lower Caves area 6414 | -6/Lower Caves | Encountered a Master Thief 6414 | -6/Lower Caves | Encountered a Master Thief 6415 | -6/Lower Caves | Encountered a Master Thief 6417 | -6/Lower Caves | Matter Filter stolen by Master Thief 6420 | -6/Lower Caves | Imp. Heavy Armor Plating stolen by Master Thief 6422 | -6/Lower Caves | Coolant Injector stolen by Master Thief 6540 | -6/Lower Caves | Discovered new exit (range 7) 6546 | -6/Lower Caves | Entered Data Miner 6546 | -6/Data Miner | Discovered new exit (range 6) 6566 | -6/Data Miner | Met Data Miner 6596 | -6/Data Miner | Learned location of Section 7 (-2) 6596 | -6/Data Miner | Acquired the access code to Warlord's prototype stash 6611 | -6/Data Miner | Received God Mode back door access code from Data Miner 6622 | -6/Data Miner | Interfaced with the Data Conduit 6992 | -6/Data Miner | Entered Proximity Caves 7014 | -5/Proximity Caves | Spotter reported a threat 7047 | -5/Proximity Caves | Spotted B-75 Beast 7115 | -5/Proximity Caves | Spotter reported a threat 7317 | -5/Proximity Caves | Discovered new exit (range 14) 7337 | -5/Proximity Caves | System corruption reached 10% 7347 | -5/Proximity Caves | Entered Factory 7347 | -5/Factory | Evolved 2 slots: Power x1, Utility x1 7348 | -5/Factory | Loaded intel: 302 machine locations 7616 | -5/Factory | Build established: Hauler-Tank 7647 | -5/Factory | Search patrols dispatched 7724 | -5/Factory | Discovered new exit (range 10) 7734 | -5/Factory | Entered Extension 7735 | -5/Extension | Loaded intel: 32 machine locations 7972 | -5/Extension | System corruption reached 10% 8100 | -5/Extension | Rescued a captive Derelict 8101 | -5/Extension | Rescued a captive Derelict 8110 | -5/Extension | Rescued a captive Derelict 8392 | -5/Extension | Spotted B-75 Beast 8404 | -5/Extension | Allies destroyed B-75 Beast 8427 | -5/Extension | Spotted B-75 Beast 8439 | -5/Extension | Destroyed B-75 Beast 8485 | -5/Extension | Lost 4 allies 8492 | -5/Extension | Rescued a captive Derelict 8500 | -5/Extension | Rescued a captive Derelict 8511 | -5/Extension | Rescued A7 8600 | -5/Extension | Energy Cycler disabled 8600 | -5/Extension | Rescued a captive Derelict 8600 | -5/Extension | Rescued a captive Derelict 8815 | -5/Extension | Discovered new exit (range 10) 8816 | -5/Extension | Discovered new exit (range 6) 8891 | -5/Extension | Entered Cetus 8891 | -5/Cetus | Accompanied by 20 allies (A7) 8892 | -5/Cetus | Loaded intel: 24 machine locations 8896 | -5/Cetus | Acquired a Cetus Manufacturing Module code from A7 8908 | -5/Cetus | Spotted Cetus Guard 8909 | -5/Cetus | Spotted Cetus Guard 8911 | -5/Cetus | Allies destroyed Cetus Guard 8912 | -5/Cetus | Spotted Cetus Guard 8913 | -5/Cetus | Spotted Cetus Guard 8913 | -5/Cetus | Destroyed Cetus Guard 8919 | -5/Cetus | Allies destroyed Cetus Guard 8920 | -5/Cetus | Allies destroyed Cetus Guard 8998 | -5/Cetus | Started Cetus Manufacturing Module 9023 | -5/Cetus | Manufactured an Enhanced Grunt 9033 | -5/Cetus | Build established: Commander-Tank 9041 | -5/Cetus | Discovered new exit (range 16) 9048 | -5/Cetus | Manufactured an Enhanced Grunt 9073 | -5/Cetus | Manufactured an Enhanced Grunt 9098 | -5/Cetus | Manufactured an Enhanced Grunt 9123 | -5/Cetus | Manufactured an Enhanced Grunt 9397 | -5/Cetus | Spotted Cetus Guard 9397 | -5/Cetus | Spotted Cetus Guard 9400 | -5/Cetus | Spotted Cetus Guard 9400 | -5/Cetus | Spotted Cetus Guard 9411 | -5/Cetus | Allies destroyed Cetus Guard 9420 | -5/Cetus | Destroyed Cetus Guard 9423 | -5/Cetus | Allies destroyed Cetus Guard 9423 | -5/Cetus | Allies destroyed Cetus Guard 9427 | -5/Cetus | Discovered new exit (range 16) 9433 | -5/Cetus | Met Revision 17 9641 | -5/Cetus | Security sweep announced 9667 | -5/Cetus | Entered Archives 9667 | -5/Archives | Accompanied by 21 allies (A7) 9668 | -5/Archives | Loaded intel: 8 machine locations 9682 | -5/Archives | Met Zhirov 9688 | -5/Archives | Reinforcements dispatched to Archives 9695 | -5/Archives | Read partially decrypted archive contents 9700 | -5/Archives | Discovered new exit (range 13) 9733 | -5/Archives | Reinforcements dispatched to Archives 9735 | -5/Archives | Zhirov warped through subspace 9753 | -5/Archives | Zhirov detonated Archives 9753 | -5/Archives | Entered Hub_04(d) 9754 | -5/Hub_04(d) | Loaded intel: 103 machine locations 9784 | -5/Hub_04(d) | Lost 19 allies 9855 | -5/Hub_04(d) | Spotted B-75 Beast 9869 | -5/Hub_04(d) | Destroyed B-75 Beast 10053 | -5/Hub_04(d) | First assault squad dispatched 10063 | -5/Hub_04(d) | Disrupted transfer network 10190 | -5/Hub_04(d) | Build established: Scavenger-Tank 10191 | -5/Hub_04(d) | Discovered new exit (range 10) 10243 | -5/Hub_04(d) | Entered Factory 10243 | -4/Factory | Evolved 2 slots: Utility x2 10244 | -4/Factory | Loaded intel: 297 machine locations 10296 | -4/Factory | Discovered new exit (range 11) 10393 | -4/Factory | Discovered new exit (range 15) 10472 | -4/Factory | Identified exit to Research 10635 | -4/Factory | Build established: Hauler-Gunner 10878 | -4/Factory | Repaired Centrium Medium Armor Plating 11062 | -4/Factory | Garrison activated, responded to threat 11131 | -4/Factory | Build established: Hauler-Tank 11203 | -4/Factory | Garrison activated, responded to threat 11514 | -4/Factory | Lost 5 parts (2p1n1u1w) 11676 | -4/Factory | Discovered new exit (range 11) 11897 | -4/Factory | Entered Armory 11898 | -4/Armory | Met VL-GR5, who suggested a friendly competition 11898 | -4/Armory | Loaded intel: 98 machine locations 12023 | -4/Armory | Build established: Hauler-Gunner 12115 | -4/Armory | Found Exp. Hacking Suite 12147 | -4/Armory | First assault squad dispatched 12313 | -4/Armory | Lost 15 parts (1p8u6w) 12527 | -4/Armory | System corruption reached 10% 12593 | -4/Armory | Build established: Scavenger-Gunner 12595 | -4/Armory | Intercept squad dispatched 12604 | -4/Armory | Spotted Tracker 12623 | -4/Armory | Destroyed Tracker 12634 | -4/Armory | Spotted Combat Programmer 12643 | -4/Armory | Destroyed Combat Programmer 12656 | -4/Armory | Found Exp. Phase Shifter 12673 | -4/Armory | Lost 5 parts (1p1n2u1w) 12806 | -4/Armory | Spotted Armor Guard 12806 | -4/Armory | Spotted Armor Guard 12846 | -4/Armory | Destroyed Armor Guard 12868 | -4/Armory | Destroyed Armor Guard 12886 | -4/Armory | Found Superdense Plating 12992 | -4/Armory | Destroyed 10 combat bots 12996 | -4/Armory | Found Exp. Weapon Cycler 13227 | -4/Armory | Discovered new exit (range 2) 13243 | -4/Armory | Entered Lab 13243 | -4/Lab | Discovered exit to Research (range 9) 13262 | -4/Lab | Hidden lab's door opened automatically 13262 | -4/Lab | Sensor layout match revealed 13263 | -4/Lab | Gained access to the hidden lab's interior 13356 | -4/Lab | Found Alien Artifact 13356 | -4/Lab | Identified Core Regenerator 13356 | -4/Lab | Used Core Regenerator, restored core integrity (+287) 13364 | -4/Lab | Found Alien Artifact 13364 | -4/Lab | Identified Integrated Reactor 13364 | -4/Lab | Installed Integrated Reactor, increased core energy generation (+10) 13372 | -4/Lab | Found Alien Artifact 13410 | -4/Lab | Found Prototype Energy Cannon 13410 | -4/Lab | Identified Warp Cannon 13414 | -4/Lab | Found Prototype Protection 13414 | -4/Lab | Identified Med. Regenerative Plating 13421 | -4/Lab | Found Prototype Energy Cannon 13423 | -4/Lab | Identified Potential Cannon 13664 | -4/Lab | Detected by scanners 13696 | -4/Lab | Confronted by A5 13714 | -4/Lab | Destroyed A5 13801 | -4/Lab | Decrypted terminal 13802 | -4/Lab | Found Alien Artifact 13802 | -4/Lab | Identified LC Capacitor 13849 | -4/Lab | Found Exp. Hacking Suite 13866 | -4/Lab | Found Prototype Hackware 13930 | -4/Lab | Entered Research 13930 | -3/Research | Evolved 2 slots: Utility x2 13931 | -3/Research | Loaded intel: 143 machine locations 14130 | -3/Research | Revision forces began assault on 0b10 14171 | -3/Research | Met up with Revision 17++ 14254 | -3/Research | Discovered new exit (range 10) 14313 | -3/Research | Identified exit to Research 14360 | -3/Research | Found Quantum Capacitor 14485 | -3/Research | Build established: Scavenger-Skirmisher 14548 | -3/Research | Intercept squad dispatched 14630 | -3/Research | Research terminal network offline 14916 | -3/Research | Discovered new exit (range 8) 14935 | -3/Research | Identified exit to Quarantine 14936 | -3/Research | Entered Quarantine 14937 | -3/Quarantine | Loaded intel: 71 machine locations 14992 | -3/Quarantine | Found Alien Artifact 15130 | -3/Quarantine | Identified Quantum Router 15169 | -3/Quarantine | Found Alien Artifact 15192 | -3/Quarantine | Cryocooling Duct disabled 15194 | -3/Quarantine | Cryocooling Duct disabled 15207 | -3/Quarantine | Ambient heat levels rising (+20) 15207 | -3/Quarantine | Non-combat units ordered to evacuate 15209 | -3/Quarantine | Ambient heat levels rising (+20) 15209 | -3/Quarantine | Combat units ordered to evacuate 15309 | -3/Quarantine | Quarantine Guard activated 15328 | -3/Quarantine | Found Alien Slashing Weapon 15328 | -3/Quarantine | Identified Sigix Broadsword 15370 | -3/Quarantine | Found Alien Artifact 15406 | -3/Quarantine | Found Alien Artifact 15406 | -3/Quarantine | Identified Dimensional Node Initializer 15406 | -3/Quarantine | Initialized slip node 15413 | -3/Quarantine | Found Alien Artifact 15419 | -3/Quarantine | Found Dimensional Node Initializer 15538 | -3/Quarantine | Found Fusion Bomb Launcher 15552 | -3/Quarantine | Spotted Quarantine Guard 15637 | -3/Quarantine | Build established: Scavenger-Assassin 15744 | -3/Quarantine | Destroyed Quarantine Guard 15791 | -3/Quarantine | Spotted Quarantine Guard 15830 | -3/Quarantine | Destroyed Quarantine Guard 15862 | -3/Quarantine | Found Alien Artifact 16087 | -3/Quarantine | Identified Core Reset Matrix 16199 | -3/Quarantine | Found Alien Impact Weapon 16234 | -3/Quarantine | Destroyed Quarantine Guard 16240 | -3/Quarantine | Spotted Quarantine Guard 16245 | -3/Quarantine | Destroyed Quarantine Guard 16436 | -3/Quarantine | Build established: Scavenger-Mutant 16457 | -3/Quarantine | Spotted Quarantine Guard 16460 | -3/Quarantine | Destroyed Quarantine Guard 16581 | -3/Quarantine | Destroyed Quarantine Guard 16616 | -3/Quarantine | Destroyed Quarantine Guard 16824 | -3/Quarantine | Destroyed Quarantine Guard 16827 | -3/Quarantine | Discovered exit to Research (range 11) 16851 | -3/Quarantine | Entered Research 16851 | -2/Research | Evolved 2 slots: Power x1, Utility x1 16852 | -2/Research | Loaded intel: 132 machine locations 16909 | -2/Research | Warp Cannon suddenly broke down 17397 | -2/Research | Intercept squad dispatched 17404 | -2/Research | Spotted Tracker 17406 | -2/Research | Spotted Tracker 17429 | -2/Research | Identified Phase Armor 17438 | -2/Research | Spotted Combat Programmer 17440 | -2/Research | Spotted B-90 Cyclops 17441 | -2/Research | Spotted Combat Programmer 17450 | -2/Research | Cargo convoy interrupted 17451 | -2/Research | System corruption reached 10% 17451 | -2/Research | Spotted Executioner 17451 | -2/Research | Spotted Striker 17457 | -2/Research | Destroyed Tracker 17461 | -2/Research | Core integrity fell below 50% 17461 | -2/Research | Destroyed Executioner 17463 | -2/Research | Destroyed Tracker 17466 | -2/Research | Destroyed Striker 17468 | -2/Research | Released all parts (13) 17470 | -2/Research | Core integrity fell below 20% 17482 | -2/Research | Destroyed by B-90 Cyclops with Nova Cannon Last Messages --------------- 17468_ Released Rnf. Quantum Reactor. 17468_ Released Adv. Signal Interpreter. 17468_ Released Com. Wheel+. 17468_ Released Lrg. Storage Unit. 17468_ Released Mic. Antimatter Reactor. 17468_ Released Adv. Force Field. 17468_ Released Exp. Power Amplifier. 17468_ Released Tiamat Missile Launcher. 17468_ Released Centrium Medium Armor Plating. 17469_ Penetrated by EMDS Slug. 17470_ EMDS Slug penetrates Wall. 17472_ The unstable cave ceiling collapses. 17472_ Penetrated by EMDS Slug. 17475_ Sigix Broadsword destroyed. 17477_ Penetrated by EMDS Slug. 17478_ Y&VBL=1 & XYE 17481_ Penetrated by Slug. 17482_ Penetrated by EMDS Slug. Map ----- +----------------------------------------------------+ | #?????????????# # #[!* # #??????? | | ##??????????????# #####+#### # #??????? | | ????????? % + # #??????? | | ????? ### # #??????? | | ????? #?" # #??????? | | ???? #?"####### #??????? | | ?????#+#### #####+##### ###??????# #??????? | | ??????????# ???? ???# ########## #??????? | | ??????????# ????? ???# # # #??????? | | ??""??????#?????? = ???# # ! # ######## | | ??"""???????????? ???# # # # | | ??"R???????????? ![ ??]# # # + | | ??"""??????????? ![ ?? # # " # """ | | ??""???????????? ![ ? =# # # # """ | | ???????????????? # % # #!! # """ | | ?????????????????###?# #% # !!*!] """ | | ???????????????????????# ; !=!!] | | ???????????????????????# pp###### #!!]!! | | ???????????????????????# #????# *%! | | ???????????????????????# #????# "" | | ???????????????????????# #????# """ | | ???????????????????????# #????# "" | | ????????????????"""????# #######;% h % ###### | | ????????????????"""????+ R hR % | | ????????????????"""????# BB % | | ???????????????????????# @ BB | | ???????????????????????# u % | | ???????????????????????# ! #### # ### | | ???????????????????????# % #### # %% #?? | | ???????????????????????# #???## ?? | | ???????????????????????+ ###????? "#?? | | ??????????????????"""??# ?????? "#?? | | ??????????????????"Y"??# k ##????### "#?? | | ??????????????????"?"??# ###+##???????# T#?? | | ???????????????????????# #????????????# ! "#?? | | ???????????????????????# #????????????# "??? | | ???????????????????????#w #???"""??????# "??? | | ???????????????????????# +???"""??????# ??? | | ???????????????????????# #???"""??????# ??? | | ???????????????????????? #????????????# ???? | | ???????????????????????? #????????????#####???? | | ???????????????????????? ??????????????????????? | | ?????????????????????????????????????????????????? | | ????????????????""?""????????????????????????????? | | ????????????????""R""????????????????????????????? | | ?????????????????""""????????????????????????????? | | ?????????????????????????????????????????????????? | | "????""??????????????????????????????????????????? | | "????"""?????????????????????????????????????????? | | "?????S"?????????????????????????????????????????? | +----------------------------------------------------+ Best States ------------- Heat Dissipation 101 Coolant Potential 180 Energy Generation 96 Energy Capacity 950 Matter Stores 300 Matter Capacity 300 Sight Range 22 Robot Scan Range 16 Terrain Scan Density 10 Jamming Range 16 Cloak Strength 3 Power Amplification 40 Base Temperature (-) 200 Armor Coverage 1825 Resistance: KI 25 Resistance: EM 25 Utility Shielding 66 Point Defense Rating 160 Weapon Cycling 30 Evasion (%) 50 Targeting Accuracy 8 Target Analysis 6 Core Analysis 6 Matter Filtering 30 Energy Filtering 50 Particle Charging 25 Salvage Targeting 2 Authchip Count 1 Item Schematics ----------------- Hvy. Armor Plating | -8/Materials | Scanalyzed Combat Drone Bay | -6/Data Miner | Free Lgt. Regenerative Plating | -6/Data Miner | Free Enh. Armored Leg | -6/Data Miner | Free Exp. Heat Sink | -6/Data Miner | Free Smartbomb Launcher | -6/Data Miner | Free Impulse Thruster | -6/Data Miner | Free Quantum Capacitor | -6/Data Miner | Free Railgun | -6/Data Miner | Free Cld. Antigrav System | -3/Quarantine | Archive Robot Schematics ------------------ G-50 Soldier | -6/Data Miner | Free Y-64 Sentinel | -6/Data Miner | Free B-60 Warrior | -6/Data Miner | Free Fabricated ------------ Nothing Repaired ---------- Com. Wheel | 3% | -10/Materials Particle Gun | 66% | -10/Materials Gauss Rifle | 3% | -8/Materials Enh. Autogun | 73% | -8/Materials Centrium Medium Armor Plating | 27% | -4/Factory Studied --------- Com. Wheel | -8/Materials | Hacked Hyp. Coil Gun | -4/Factory | Hacked Alien Tech Used ----------------- Core Regenerator Integrated Reactor LC Capacitor Sigix Broadsword Dimensional Node Initializer Phase Armor Achievements -------------- None Challenges ------------ None Game ------ Seed SignalMissileScreen Manual? 0 Play Time 03:33:00 Cumulative 625.2 hours Start 2026.08.29 @ 17:39:31 End 2026.08.29 @ 22:19:52 Sessions 3 Manual Loads 0 Difficulty Rogue Special Mode None Game No. 259 Rogue 259 Adventurer 0 Explorer 0 Win Type - Total 37 Types 16/4/6/2/1/2/2/2/1/1 Lore% 90 Gallery% 83 Achievement% 78 Wizard Run 0 Options --------- Layout 0 ASCII 0 Keyboard 1 Movement Arrows Keybinds 0 Fullscreen 2 Font 18/Terminus Map View 76x50 Zoom Use 0% Tactical HUD 1 Map Filters BRIGHTNESS(90)|SATURATION(90) Filters NONE Steam 1 RUN: 40d5651b-8cdc-4c04-8732-b97e6c400244